[Event "*** SCC Grand Prix: Titled Tuesday Blitz"]
[Site "Chess.com"]
[Date "2020.08.11"]
[Round "4"]
[White "GM_dmitrij"]
[Black "Grandelicious"]
[Result "1-0"]
[WhiteElo "2936"]
[BlackElo "2763"]
[TimeControl "180+1"]
[EndTime "10:40:54 PDT"]
[Termination "GM_dmitrij won on time"]

1. e4 {[%clk 0:03:00.9]} 1... c6 {[%clk 0:02:58]} 2. Nf3 {[%clk 0:02:58.9]} 2...
d5 {[%clk 0:02:58.6]} 3. Nc3 {[%clk 0:02:59.2]} 3... Bg4 {[%clk 0:02:55.6]} 4.
h3 {[%clk 0:02:59]} 4... Bxf3 {[%clk 0:02:56]} 5. Qxf3 {[%clk 0:02:59.9]} 5...
e6 {[%clk 0:02:56.5]} 6. Be2 {[%clk 0:03:00.3]} 6... Bc5 {[%clk 0:02:51.7]} 7.
O-O {[%clk 0:02:59.7]} 7... Nd7 {[%clk 0:02:50.6]} 8. Rd1 {[%clk 0:02:59]} 8...
Bd4 {[%clk 0:02:48]} 9. Qf4 {[%clk 0:02:53.2]} 9... Ne7 {[%clk 0:02:38.5]} 10.
exd5 {[%clk 0:02:48.6]} 10... Be5 {[%clk 0:02:38.6]} 11. Qg4 {[%clk 0:02:30.2]}
11... cxd5 {[%clk 0:02:20.1]} 12. d4 {[%clk 0:02:29.2]} 12... Bf6 {[%clk
0:02:06.7]} 13. Bd3 {[%clk 0:02:27.6]} 13... O-O {[%clk 0:02:00.1]} 14. Ne2
{[%clk 0:02:27.7]} 14... e5 {[%clk 0:01:52.1]} 15. dxe5 {[%clk 0:01:58.3]} 15...
Nxe5 {[%clk 0:01:53]} 16. Qg3 {[%clk 0:01:58.9]} 16... N7g6 {[%clk 0:01:23.4]}
17. Bxg6 {[%clk 0:01:58.5]} 17... Nxg6 {[%clk 0:01:22.7]} 18. c3 {[%clk
0:01:56.2]} 18... Re8 {[%clk 0:01:17.9]} 19. Be3 {[%clk 0:01:47.3]} 19... Qa5
{[%clk 0:01:08.3]} 20. Nd4 {[%clk 0:01:39.1]} 20... Rad8 {[%clk 0:01:03.8]} 21.
Rd2 {[%clk 0:01:37.1]} 21... Ne5 {[%clk 0:00:50.5]} 22. Nb3 {[%clk 0:01:30.1]}
22... Qa6 {[%clk 0:00:46.2]} 23. Bd4 {[%clk 0:01:10.9]} 23... Nc4 {[%clk
0:00:46.1]} 24. Rc2 {[%clk 0:01:11.3]} 24... Bxd4 {[%clk 0:00:38.1]} 25. Nxd4
{[%clk 0:01:12.2]} 25... Qf6 {[%clk 0:00:34.9]} 26. b3 {[%clk 0:01:07.9]} 26...
Nd6 {[%clk 0:00:35]} 27. Qf3 {[%clk 0:01:03.8]} 27... Qxf3 {[%clk 0:00:34.1]}
28. Nxf3 {[%clk 0:01:04.7]} 28... Ne4 {[%clk 0:00:34.7]} 29. Rd1 {[%clk
0:01:02.4]} 29... Rc8 {[%clk 0:00:33.7]} 30. Rd3 {[%clk 0:00:47.2]} 30... g6
{[%clk 0:00:33.5]} 31. Nd4 {[%clk 0:00:43.9]} 31... a6 {[%clk 0:00:32.6]} 32. f3
{[%clk 0:00:42.8]} 32... Nc5 {[%clk 0:00:31.9]} 33. Rd1 {[%clk 0:00:41.6]} 33...
Ne6 {[%clk 0:00:31.5]} 34. Ne2 {[%clk 0:00:39.4]} 34... Rc5 {[%clk 0:00:22.2]}
35. Kf2 {[%clk 0:00:38.3]} 35... Nc7 {[%clk 0:00:19.9]} 36. Rcd2 {[%clk
0:00:37]} 36... Kg7 {[%clk 0:00:18.5]} 37. Rd3 {[%clk 0:00:37.4]} 37... Re6
{[%clk 0:00:18.5]} 38. Nf4 {[%clk 0:00:29.4]} 38... Rec6 {[%clk 0:00:17.9]} 39.
Ne2 {[%clk 0:00:27.9]} 39... Nb5 {[%clk 0:00:17.7]} 40. Rc1 {[%clk 0:00:25]}
40... h5 {[%clk 0:00:14.3]} 41. a4 {[%clk 0:00:24.4]} 41... Nc7 {[%clk
0:00:14.3]} 42. b4 {[%clk 0:00:24.2]} 42... Rc4 {[%clk 0:00:14.3]} 43. Ke3
{[%clk 0:00:19.2]} 43... Re6+ {[%clk 0:00:12.5]} 44. Kd2 {[%clk 0:00:19.3]}
44... h4 {[%clk 0:00:13.1]} 45. Nd4 {[%clk 0:00:18.5]} 45... Re7 {[%clk
0:00:13.1]} 46. Re1 {[%clk 0:00:16.6]} 46... Rxe1 {[%clk 0:00:12.6]} 47. Kxe1
{[%clk 0:00:17.5]} 47... a5 {[%clk 0:00:13.5]} 48. Nc2 {[%clk 0:00:15.4]} 48...
axb4 {[%clk 0:00:13.1]} 49. Nxb4 {[%clk 0:00:16.3]} 49... d4 {[%clk 0:00:12.8]}
50. Rxd4 {[%clk 0:00:16.2]} 50... Rxc3 {[%clk 0:00:13.3]} 51. Rd7 {[%clk
0:00:16.4]} 51... Rc4 {[%clk 0:00:11.1]} 52. Nd3 {[%clk 0:00:15.8]} 52... Ne6
{[%clk 0:00:11.1]} 53. Rxf7+ {[%clk 0:00:15.4]} 53... Kxf7 {[%clk 0:00:09.9]}
54. Ne5+ {[%clk 0:00:15.3]} 54... Kf6 {[%clk 0:00:10.5]} 55. Nxc4 {[%clk
0:00:16.2]} 55... Nc5 {[%clk 0:00:10.1]} 56. a5 {[%clk 0:00:15.8]} 56... Ke6
{[%clk 0:00:10.5]} 57. Kd2 {[%clk 0:00:14]} 57... Kd5 {[%clk 0:00:10.7]} 58. Kc3
{[%clk 0:00:14.5]} 58... g5 {[%clk 0:00:11.2]} 59. Ne3+ {[%clk 0:00:10.9]} 59...
Kc6 {[%clk 0:00:07.7]} 60. Kc4 {[%clk 0:00:10.8]} 60... Ne6 {[%clk 0:00:07.9]}
61. Nd5 {[%clk 0:00:11.2]} 61... Ng7 {[%clk 0:00:04.6]} 62. Nb4+ {[%clk
0:00:10.5]} 62... Kd6 {[%clk 0:00:04.3]} 63. Kb5 {[%clk 0:00:10.5]} 63... Ne6
{[%clk 0:00:03.7]} 64. Kb6 {[%clk 0:00:10.5]} 64... Nf4 {[%clk 0:00:02.5]} 65.
Kxb7 {[%clk 0:00:09.6]} 65... Nxg2 {[%clk 0:00:02.3]} 66. a6 {[%clk 0:00:10.3]}
66... g4 {[%clk 0:00:03]} 67. fxg4 {[%clk 0:00:10.1]} 67... Nf4 {[%clk
0:00:02.7]} 68. a7 {[%clk 0:00:11]} 1-0

[Event "*** SCC Grand Prix: Titled Tuesday Blitz"]
[Site "Chess.com"]
[Date "2020.08.11"]
[Round "4"]
[White "Ze-Pequeno"]
[Black "hellokostya"]
[Result "1-0"]
[WhiteElo "2165"]
[BlackElo "2383"]
[TimeControl "180+1"]
[EndTime "10:40:54 PDT"]
[Termination "Ze-Pequeno won by resignation"]

1. e4 {[%clk 0:03:00.9]} 1... Nc6 {[%clk 0:02:56.4]} 2. Nf3 {[%clk 0:03:00.3]}
2... d6 {[%clk 0:02:56.1]} 3. d4 {[%clk 0:03:00.2]} 3... Nf6 {[%clk 0:02:56]} 4.
d5 {[%clk 0:02:59.8]} 4... Nb8 {[%clk 0:02:55.7]} 5. Nc3 {[%clk 0:02:59.4]} 5...
g6 {[%clk 0:02:55.6]} 6. h3 {[%clk 0:02:57.5]} 6... Bg7 {[%clk 0:02:52.1]} 7.
Be3 {[%clk 0:02:56.4]} 7... O-O {[%clk 0:02:51.1]} 8. Qd2 {[%clk 0:02:56.2]}
8... c6 {[%clk 0:02:47.2]} 9. dxc6 {[%clk 0:02:54.9]} 9... bxc6 {[%clk
0:02:31.9]} 10. Be2 {[%clk 0:02:46.7]} 10... Ba6 {[%clk 0:02:18.3]} 11. Bxa6
{[%clk 0:02:44.8]} 11... Nxa6 {[%clk 0:02:18]} 12. O-O {[%clk 0:02:45.7]} 12...
Nd7 {[%clk 0:02:07.4]} 13. Bd4 {[%clk 0:02:40.5]} 13... Qc7 {[%clk 0:01:47]} 14.
Bxg7 {[%clk 0:02:37.2]} 14... Kxg7 {[%clk 0:01:47.9]} 15. Rfe1 {[%clk
0:02:31.7]} 15... Rab8 {[%clk 0:01:47.4]} 16. b3 {[%clk 0:02:30.6]} 16... Qa5
{[%clk 0:01:42.6]} 17. Rad1 {[%clk 0:02:26.9]} 17... Nac5 {[%clk 0:01:33.3]} 18.
a4 {[%clk 0:02:15.4]} 18... Qb4 {[%clk 0:01:27.8]} 19. e5 {[%clk 0:02:00.4]}
19... d5 {[%clk 0:01:21.8]} 20. Nd4 {[%clk 0:01:57.4]} 20... Qb6 {[%clk
0:00:57.6]} 21. e6 {[%clk 0:01:55.4]} 21... fxe6 {[%clk 0:00:51.1]} 22. Nxe6+
{[%clk 0:01:49.6]} 22... Nxe6 {[%clk 0:00:50.6]} 23. Rxe6 {[%clk 0:01:49.7]}
23... Rf7 {[%clk 0:00:45.5]} 24. Nxd5 {[%clk 0:01:48.7]} 24... Qc5 {[%clk
0:00:43.6]} 25. Qc3+ {[%clk 0:01:44.3]} 25... Qxc3 {[%clk 0:00:41.6]} 26. Nxc3
{[%clk 0:01:43.9]} 26... Rb7 {[%clk 0:00:26.2]} 27. Rxc6 {[%clk 0:01:43.5]}
27... Ne5 {[%clk 0:00:24.9]} 28. Re6 {[%clk 0:01:36.2]} 28... Nd7 {[%clk
0:00:23]} 29. Nd5 {[%clk 0:01:23.9]} 29... Nc5 {[%clk 0:00:21.5]} 30. Re3 {[%clk
0:01:23]} 30... e6 {[%clk 0:00:20.4]} 31. Nc3 {[%clk 0:01:21.3]} 31... Rbc7
{[%clk 0:00:20.8]} 32. Rd2 {[%clk 0:01:18.7]} 32... a6 {[%clk 0:00:20.1]} 33.
Ne4 {[%clk 0:01:18]} 33... Nxe4 {[%clk 0:00:19.4]} 34. Rxe4 {[%clk 0:01:18.4]}
34... Rc6 {[%clk 0:00:18.7]} 35. Rde2 {[%clk 0:01:15]} 35... Kf6 {[%clk
0:00:18.4]} 36. Rf4+ {[%clk 0:01:14.6]} 36... Ke7 {[%clk 0:00:18.7]} 37. Rxf7+
{[%clk 0:01:14.4]} 37... Kxf7 {[%clk 0:00:19.6]} 38. Rd2 {[%clk 0:01:14.8]}
38... Ke7 {[%clk 0:00:19.6]} 39. f4 {[%clk 0:01:12.4]} 39... h5 {[%clk
0:00:18.2]} 40. Kf2 {[%clk 0:01:12.6]} 40... Rc3 {[%clk 0:00:17.8]} 41. Ke2
{[%clk 0:01:07.5]} 41... Rg3 {[%clk 0:00:17.2]} 42. Kf2 {[%clk 0:01:06.9]} 42...
Rc3 {[%clk 0:00:17.7]} 43. Ke2 {[%clk 0:01:03.8]} 43... Rg3 {[%clk 0:00:17.5]}
44. Kd1 {[%clk 0:01:04]} 44... Rc3 {[%clk 0:00:17.9]} 45. Rd3 {[%clk 0:01:03.4]}
45... Rc5 {[%clk 0:00:16.9]} 46. c4 {[%clk 0:01:01.8]} 46... h4 {[%clk
0:00:15.6]} 47. Ke2 {[%clk 0:01:01.5]} 47... Rf5 {[%clk 0:00:14.1]} 48. Ke3
{[%clk 0:01:01.3]} 48... a5 {[%clk 0:00:14.2]} 49. Rd4 {[%clk 0:01:00.1]} 49...
Rc5 {[%clk 0:00:13.4]} 50. Re4 {[%clk 0:01:00.1]} 50... Rc8 {[%clk 0:00:12.2]}
51. Re5 {[%clk 0:00:59.8]} 51... Rb8 {[%clk 0:00:11.3]} 52. Rb5 {[%clk
0:00:59.5]} 52... Ra8 {[%clk 0:00:09.7]} 53. Ke4 {[%clk 0:00:59.2]} 53... Kf6
{[%clk 0:00:08.8]} 54. c5 {[%clk 0:00:57.8]} 54... Ra6 {[%clk 0:00:06]} 55. Rb6
{[%clk 0:00:55.6]} 55... Ra8 {[%clk 0:00:06.1]} 56. c6 {[%clk 0:00:55.8]} 56...
Rc8 {[%clk 0:00:05.7]} 57. Kd4 {[%clk 0:00:51.6]} 57... Kf5 {[%clk 0:00:05.4]}
58. Ke3 {[%clk 0:00:44.3]} 58... e5 {[%clk 0:00:04.3]} 59. Rb5 {[%clk
0:00:42.9]} 59... Rxc6 {[%clk 0:00:03.7]} 60. Rxe5+ {[%clk 0:00:42.8]} 60... Kf6
{[%clk 0:00:04.6]} 61. Rb5 {[%clk 0:00:42.5]} 61... Rc3+ {[%clk 0:00:04.5]} 62.
Ke4 {[%clk 0:00:42.8]} 62... Rc2 {[%clk 0:00:04.8]} 63. Kf3 {[%clk 0:00:42.7]}
63... Rc3+ {[%clk 0:00:04.7]} 64. Kg4 {[%clk 0:00:42.9]} 64... Rg3+ {[%clk
0:00:05.2]} 65. Kxh4 {[%clk 0:00:43]} 65... Rxg2 {[%clk 0:00:06.1]} 66. Rxa5
{[%clk 0:00:42.8]} 66... Kg7 {[%clk 0:00:05.7]} 67. Ra6 {[%clk 0:00:36.4]} 67...
Kf7 {[%clk 0:00:04]} 68. b4 {[%clk 0:00:34.7]} 68... Kg7 {[%clk 0:00:03.8]} 69.
b5 {[%clk 0:00:34.6]} 69... Rb2 {[%clk 0:00:03.1]} 70. Kg4 {[%clk 0:00:32.7]}
70... Rb3 {[%clk 0:00:03.2]} 71. h4 {[%clk 0:00:30.8]} 71... Rb1 {[%clk
0:00:03.4]} 72. b6 {[%clk 0:00:29.6]} 72... Rg1+ {[%clk 0:00:03.3]} 73. Kf3
{[%clk 0:00:29.8]} 73... Rb1 {[%clk 0:00:04.2]} 74. Ra7+ {[%clk 0:00:28.6]}
74... Kf6 {[%clk 0:00:04.4]} 75. b7 {[%clk 0:00:28.9]} 75... Kf5 {[%clk
0:00:04.7]} 76. Ra5+ {[%clk 0:00:27.4]} 76... Kf6 {[%clk 0:00:04.2]} 77. Rb5
{[%clk 0:00:28.3]} 1-0

[Event "*** SCC Grand Prix: Titled Tuesday Blitz"]
[Site "Chess.com"]
[Date "2020.08.11"]
[Round "4"]
[White "mjray79"]
[Black "Heineccius"]
[Result "0-1"]
[WhiteElo "2368"]
[BlackElo "2612"]
[TimeControl "180+1"]
[EndTime "10:40:55 PDT"]
[Termination "Heineccius won on time"]

1. d4 {[%clk 0:03:00.9]} 1... Nf6 {[%clk 0:02:59.6]} 2. c4 {[%clk 0:03:01.3]}
2... e6 {[%clk 0:02:59.6]} 3. g3 {[%clk 0:03:00.6]} 3... d5 {[%clk 0:02:59]} 4.
Bg2 {[%clk 0:03:00.1]} 4... Be7 {[%clk 0:02:59.1]} 5. Nf3 {[%clk 0:02:59.6]}
5... O-O {[%clk 0:02:59]} 6. O-O {[%clk 0:02:59.5]} 6... dxc4 {[%clk 0:02:59.5]}
7. Qc2 {[%clk 0:02:59.1]} 7... a6 {[%clk 0:02:59.4]} 8. a4 {[%clk 0:02:58.4]}
8... Bd7 {[%clk 0:02:59.1]} 9. Qxc4 {[%clk 0:02:58.5]} 9... Bc6 {[%clk
0:02:57.7]} 10. Bg5 {[%clk 0:02:54.9]} 10... Bd5 {[%clk 0:02:53.7]} 11. Qc2
{[%clk 0:02:53.4]} 11... Be4 {[%clk 0:02:53.4]} 12. Qd2 {[%clk 0:02:52.9]} 12...
Nbd7 {[%clk 0:02:51.2]} 13. Nc3 {[%clk 0:02:52.4]} 13... Bc6 {[%clk 0:02:51.6]}
14. Rfe1 {[%clk 0:02:51]} 14... Ne4 {[%clk 0:02:48.6]} 15. Nxe4 {[%clk
0:02:45.9]} 15... Bxe4 {[%clk 0:02:49.5]} 16. Bxe7 {[%clk 0:02:45.3]} 16... Qxe7
{[%clk 0:02:49.9]} 17. Qf4 {[%clk 0:02:45.4]} 17... Nf6 {[%clk 0:02:47.2]} 18.
Rac1 {[%clk 0:02:44.1]} 18... c6 {[%clk 0:02:45.1]} 19. Nd2 {[%clk 0:02:37.9]}
19... Bxg2 {[%clk 0:02:43.5]} 20. Kxg2 {[%clk 0:02:38.8]} 20... Qb4 {[%clk
0:02:12.8]} 21. Rc4 {[%clk 0:02:23.5]} 21... Qxb2 {[%clk 0:02:11]} 22. Rb1
{[%clk 0:02:21.4]} 22... Qa2 {[%clk 0:02:11.3]} 23. e4 {[%clk 0:02:07.3]} 23...
Nxe4 {[%clk 0:01:47.6]} 24. Qxe4 {[%clk 0:02:04.2]} 24... Qxd2 {[%clk
0:01:46.4]} 25. Rxb7 {[%clk 0:02:04]} 25... Rad8 {[%clk 0:01:38.1]} 26. Rc7
{[%clk 0:01:51.8]} 26... a5 {[%clk 0:01:32.4]} 27. R7xc6 {[%clk 0:01:51]} 27...
Rd7 {[%clk 0:01:16.4]} 28. Rc8 {[%clk 0:01:35]} 28... Rdd8 {[%clk 0:01:01.1]}
29. R8c7 {[%clk 0:01:33.4]} 29... Rb8 {[%clk 0:00:58.1]} 30. Rc2 {[%clk
0:01:28.3]} 30... Qb4 {[%clk 0:00:56.7]} 31. R7c4 {[%clk 0:01:26.9]} 31... Qd6
{[%clk 0:00:57]} 32. Rc6 {[%clk 0:01:23]} 32... Qd7 {[%clk 0:00:56.3]} 33. R2c4
{[%clk 0:01:14.7]} 33... Rb2 {[%clk 0:00:50.6]} 34. R6c5 {[%clk 0:01:08.5]}
34... Rb4 {[%clk 0:00:42.4]} 35. Rxb4 {[%clk 0:01:00.6]} 35... axb4 {[%clk
0:00:43.3]} 36. Rb5 {[%clk 0:01:00.4]} 36... b3 {[%clk 0:00:41.3]} 37. Qd3
{[%clk 0:00:42]} 37... b2 {[%clk 0:00:34.4]} 38. Rxb2 {[%clk 0:00:34.2]} 38...
Qxa4 {[%clk 0:00:34.1]} 39. d5 {[%clk 0:00:33.9]} 39... Qd7 {[%clk 0:00:32.8]}
40. d6 {[%clk 0:00:26.5]} 40... Rd8 {[%clk 0:00:28.9]} 41. Rc2 {[%clk
0:00:22.5]} 41... h6 {[%clk 0:00:26.7]} 42. Rd2 {[%clk 0:00:19.1]} 42... Qc6+
{[%clk 0:00:26.4]} 43. f3 {[%clk 0:00:16.8]} 43... Rd7 {[%clk 0:00:26]} 44. Qd4
{[%clk 0:00:14.5]} 44... f6 {[%clk 0:00:19.6]} 45. Qd3 {[%clk 0:00:13.7]} 45...
Kf7 {[%clk 0:00:18.7]} 46. Qd4 {[%clk 0:00:13.7]} 46... e5 {[%clk 0:00:18]} 47.
Qd3 {[%clk 0:00:13]} 47... Qc5 {[%clk 0:00:17.4]} 48. Qb3+ {[%clk 0:00:12.6]}
48... Kg6 {[%clk 0:00:16.6]} 49. Qe6 {[%clk 0:00:10.8]} 49... Qc6 {[%clk
0:00:14.7]} 50. h4 {[%clk 0:00:08.3]} 50... h5 {[%clk 0:00:13.9]} 51. g4 {[%clk
0:00:07.7]} 51... hxg4 {[%clk 0:00:13.7]} 52. Qxg4+ {[%clk 0:00:06.9]} 52... Kf7
{[%clk 0:00:14.2]} 53. Qh5+ {[%clk 0:00:07]} 53... Kf8 {[%clk 0:00:13.3]} 54.
Qh8+ {[%clk 0:00:06.9]} 54... Kf7 {[%clk 0:00:13.4]} 55. Qh5+ {[%clk 0:00:07.1]}
55... Ke6 {[%clk 0:00:12.3]} 56. Qe8+ {[%clk 0:00:06.9]} 56... Kf5 {[%clk
0:00:10.4]} 57. Qh5+ {[%clk 0:00:06.5]} 57... g5 {[%clk 0:00:09.1]} 58. Qg4+
{[%clk 0:00:05.1]} 58... Kg6 {[%clk 0:00:08.4]} 59. hxg5 {[%clk 0:00:05.3]}
59... f5 {[%clk 0:00:06.9]} 60. Qh4 {[%clk 0:00:04.5]} 60... Rh7 {[%clk
0:00:07]} 61. Qb4 {[%clk 0:00:03.1]} 61... Qd7 {[%clk 0:00:06]} 62. Qc4 {[%clk
0:00:02.2]} 62... Kxg5 {[%clk 0:00:05.5]} 63. Qd5 {[%clk 0:00:02.1]} 63... Kf6
{[%clk 0:00:05.5]} 0-1

[Event "*** SCC Grand Prix: Titled Tuesday Blitz"]
[Site "Chess.com"]
[Date "2020.08.11"]
[Round "4"]
[White "Bigfish1995"]
[Black "pedromartinez91"]
[Result "1-0"]
[WhiteElo "2967"]
[BlackElo "2561"]
[TimeControl "180+1"]
[EndTime "10:40:56 PDT"]
[Termination "Bigfish1995 won by resignation"]

1. d4 {[%clk 0:02:48.3]} 1... d5 {[%clk 0:02:58.9]} 2. c4 {[%clk 0:02:48.2]}
2... Bf5 {[%clk 0:02:59.4]} 3. cxd5 {[%clk 0:02:46.7]} 3... Bxb1 {[%clk
0:02:56.8]} 4. Qa4+ {[%clk 0:02:18.5]} 4... c6 {[%clk 0:02:56.7]} 5. Rxb1 {[%clk
0:02:09.4]} 5... Qxd5 {[%clk 0:02:55.3]} 6. Nf3 {[%clk 0:02:00.8]} 6... Nd7
{[%clk 0:02:53.9]} 7. e3 {[%clk 0:01:48.3]} 7... Ngf6 {[%clk 0:02:48.6]} 8. Be2
{[%clk 0:01:39.5]} 8... Nb6 {[%clk 0:02:45.7]} 9. Qb3 {[%clk 0:01:39.2]} 9...
Qxb3 {[%clk 0:02:44.5]} 10. axb3 {[%clk 0:01:39.4]} 10... e6 {[%clk 0:02:37.3]}
11. O-O {[%clk 0:01:39.5]} 11... Bb4 {[%clk 0:02:30.9]} 12. Ne5 {[%clk
0:01:36.7]} 12... O-O {[%clk 0:02:26.5]} 13. Nd3 {[%clk 0:01:35.6]} 13... Be7
{[%clk 0:02:23.7]} 14. Ra1 {[%clk 0:01:33.1]} 14... Nbd7 {[%clk 0:02:09.9]} 15.
b4 {[%clk 0:01:30.4]} 15... Bd6 {[%clk 0:01:44.6]} 16. f4 {[%clk 0:01:20.1]}
16... a6 {[%clk 0:01:10.6]} 17. Bf3 {[%clk 0:01:14.8]} 17... Nd5 {[%clk
0:01:03.8]} 18. Bd2 {[%clk 0:01:00.6]} 18... f5 {[%clk 0:01:00]} 19. Nc5 {[%clk
0:01:00.5]} 19... Bxc5 {[%clk 0:00:59.3]} 20. bxc5 {[%clk 0:01:00]} 20... N7f6
{[%clk 0:00:59.4]} 21. Kf2 {[%clk 0:00:54.9]} 21... Ne4+ {[%clk 0:00:59]} 22.
Ke2 {[%clk 0:00:34.2]} 22... Nc7 {[%clk 0:00:59.2]} 23. Ba5 {[%clk 0:00:32]}
23... Nb5 {[%clk 0:00:59.6]} 24. Kd3 {[%clk 0:00:32.1]} 24... Nf6 {[%clk
0:00:56.6]} 25. h3 {[%clk 0:00:30.9]} 25... Nd5 {[%clk 0:00:56]} 26. g4 {[%clk
0:00:30.5]} 26... g6 {[%clk 0:00:56.5]} 27. Rg1 {[%clk 0:00:30]} 27... Kf7
{[%clk 0:00:56.5]} 28. h4 {[%clk 0:00:30.5]} 28... Rg8 {[%clk 0:00:50.4]} 29.
Rg2 {[%clk 0:00:29.6]} 29... Nf6 {[%clk 0:00:48.8]} 30. g5 {[%clk 0:00:28.3]}
30... Nh5 {[%clk 0:00:36.3]} 31. Kc4 {[%clk 0:00:23.5]} 31... Rge8 {[%clk
0:00:35.1]} 32. Rh1 {[%clk 0:00:23.2]} 32... Re7 {[%clk 0:00:34]} 33. Rh3 {[%clk
0:00:22.2]} 33... Rd7 {[%clk 0:00:32.8]} 34. Rd2 {[%clk 0:00:21.2]} 34... Re8
{[%clk 0:00:28.2]} 35. Rd3 {[%clk 0:00:19.5]} 35... Rd5 {[%clk 0:00:17]} 36.
Bxd5 {[%clk 0:00:13.9]} 36... exd5+ {[%clk 0:00:17.9]} 37. Kb3 {[%clk
0:00:14.2]} 37... Ke7 {[%clk 0:00:15.2]} 38. Bd2 {[%clk 0:00:14.6]} 38... Kd7
{[%clk 0:00:15.5]} 39. Kb4 {[%clk 0:00:15.2]} 39... Kc8 {[%clk 0:00:15.1]} 40.
Ka5 {[%clk 0:00:15.4]} 40... Re4 {[%clk 0:00:14.7]} 41. Rb3 {[%clk 0:00:14.2]}
41... Re8 {[%clk 0:00:13]} 42. Rh1 {[%clk 0:00:14.3]} 42... Kb8 {[%clk
0:00:13.1]} 43. Ra1 {[%clk 0:00:13.9]} 43... Ng3 {[%clk 0:00:13.2]} 44. Be1
{[%clk 0:00:13.9]} 44... Nh5 {[%clk 0:00:13]} 45. Kb6 {[%clk 0:00:11.3]} 45...
Ng7 {[%clk 0:00:11.7]} 46. Bg3 {[%clk 0:00:08.2]} 46... Re6 {[%clk 0:00:11.6]}
47. Bf2 {[%clk 0:00:07.2]} 47... Nh5 {[%clk 0:00:11.9]} 48. Ka5 {[%clk
0:00:07.2]} 48... Ng7 {[%clk 0:00:12.2]} 49. h5 {[%clk 0:00:07]} 49... Nxh5
{[%clk 0:00:12.5]} 50. Rh1 {[%clk 0:00:07.5]} 50... Nc7 {[%clk 0:00:11.2]} 51.
Rd3 {[%clk 0:00:07.6]} 51... Nb5 {[%clk 0:00:11.2]} 52. Rdd1 {[%clk 0:00:07.6]}
52... Ka7 {[%clk 0:00:10.5]} 53. Rh3 {[%clk 0:00:08.1]} 53... Nc7 {[%clk
0:00:10.1]} 54. Rdh1 {[%clk 0:00:08.3]} 54... Re7 {[%clk 0:00:10.4]} 55. Rxh5
{[%clk 0:00:08.3]} 55... gxh5 {[%clk 0:00:11.3]} 56. Rxh5 {[%clk 0:00:08.8]}
56... Ne8 {[%clk 0:00:11.8]} 57. Rh6 {[%clk 0:00:08.9]} 57... Rf7 {[%clk
0:00:10.8]} 58. Re6 {[%clk 0:00:08.5]} 58... Nc7 {[%clk 0:00:10.9]} 59. Rh6
{[%clk 0:00:07.1]} 59... Nb5 {[%clk 0:00:11.4]} 60. Kb4 {[%clk 0:00:06.8]} 60...
Nc7 {[%clk 0:00:11.8]} 61. Kc3 {[%clk 0:00:06.2]} 61... Kb8 {[%clk 0:00:12.3]}
62. Kd3 {[%clk 0:00:06.3]} 62... Kc8 {[%clk 0:00:13]} 63. Bh4 {[%clk 0:00:04.5]}
63... Kd7 {[%clk 0:00:12.8]} 64. Rd6+ {[%clk 0:00:04.8]} 64... Kc8 {[%clk
0:00:12.3]} 65. g6 {[%clk 0:00:04.8]} 65... Rf8 {[%clk 0:00:10.7]} 66. gxh7
{[%clk 0:00:04.9]} 66... Rh8 {[%clk 0:00:11]} 67. Rd8+ {[%clk 0:00:05.3]} 67...
Rxd8 {[%clk 0:00:10.7]} 68. Bxd8 {[%clk 0:00:06.2]} 1-0